bitfinex-derivatives/quotes_BTCF0:USTF0_20241029
["timestamp","ask_amount","ask_price","bid_price","bid_amount"]
[1730196465961,0.07131086,71299.0,71298.0,0.13204809]
[1730196466258,0.10567676,71299.0,71298.0,0.13204809]
[1730196466460,0.07231086,71299.0,71298.0,0.13204809]
[1730196471256,0.07231086,71299.0,71298.0,0.22849868]
[1730196472361,0.07231086,71299.0,71298.0,0.09645059]
[1730196472665,0.10481086,71299.0,71298.0,0.21139535]
[1730196473162,0.10481086,71299.0,71298.0,0.09645059]
[1730196474260,0.10481086,71299.0,71298.0,0.18058342]
[1730196475156,0.10481086,71299.0,71298.0,0.09645059]
[1730196475566,0.10481086,71299.0,71298.0,0.18057599]
[1730196476357,0.10481086,71299.0,71298.0,0.09645059]
[1730196477367,0.10480886,71299.0,71298.0,0.09627184]
[1730196479760,0.16667695,71299.0,71298.0,0.09627184]
[1730196480467,0.52747695,71299.0,71298.0,0.09627184]
[1730196482869,0.16667695,71299.0,71298.0,0.09627184]
[1730196483069,0.16567695,71299.0,71298.0,0.09627184]
[1730196483268,0.52647695,71299.0,71298.0,0.09627184]
[1730196484273,0.52547695,71299.0,71298.0,0.09627184]
[1730196486170,0.52547695,71299.0,71295.0,0.09529525]
[1730196486369,0.13205009,71296.0,71295.0,0.09529525]
[1730196487068,0.13217995,71296.0,71295.0,0.09529525]
[1730196488869,0.13217995,71296.0,71295.0,0.02511225]
[1730196489066,0.06199795,71296.0,71294.0,0.06186809]
[1730196489268,0.070183,71295.0,71294.0,0.06186809]
[1730196489567,0.07031286,71295.0,71294.0,0.06186809]
[1730196490868,0.07131286,71295.0,71294.0,0.06186809]
[1730196492077,0.07131286,71295.0,71294.0,0.08689564]
[1730196492576,0.07231286,71295.0,71294.0,0.08689564]
[1730196494290,0.07231286,71295.0,71294.0,0.18331229]
[1730196494772,0.07231286,71295.0,71294.0,0.25349629]
[1730196495172,0.07231286,71295.0,71294.0,0.36841718]
[1730196496867,0.07231286,71295.0,71294.0,0.29823318]
[1730196503676,0.07231286,71295.0,71294.0,0.29851505]
[1730196505177,0.13418095,71295.0,71294.0,0.23664412]
[1730196509187,0.07231286,71295.0,71294.0,0.23664412]
[1730196509487,0.07231286,71295.0,71294.0,0.02502755]
[1730196509687,0.00212986,71295.0,71293.0,0.070185]
[1730196509988,0.07031386,71294.0,71293.0,0.070185]
[1730196511780,0.07031386,71294.0,71293.0,0.09563527]
[1730196512588,0.07131386,71294.0,71293.0,0.09563527]
[1730196513190,0.07231386,71294.0,71293.0,0.09563527]
[1730196516295,0.07231386,71294.0,71293.0,0.3072983]
[1730196519879,0.07231386,71294.0,71293.0,0.30738438]
[1730196524282,0.07231386,71294.0,71293.0,0.09563527]
[1730196525286,0.00212986,71294.0,71293.0,0.09563527]
[1730196527204,0.07231386,71294.0,71293.0,0.09563527]
[1730196529801,0.03649789,71294.0,71293.0,0.09563527]
[1730196530293,0.00212986,71294.0,71293.0,0.09563527]
[1730196531399,0.00212986,71294.0,71293.0,0.30751163]
[1730196534595,0.00212986,71294.0,71293.0,0.30734231]
[1730196539505,0.00212986,71294.0,71293.0,0.09563527]
[1730196540503,0.07231386,71294.0,71293.0,0.09563527]
[1730196546506,0.07231386,71294.0,71293.0,0.30727143]
[1730196547902,0.07231386,71294.0,71293.0,0.30727238]
[1730196548905,0.07231386,71294.0,71293.0,0.66807238]
[1730196550213,0.07231386,71294.0,71293.0,0.45643527]
[1730196550506,0.07231386,71294.0,71293.0,0.66808272]
[1730196552910,0.07231386,71294.0,71293.0,0.66814218]
[1730196554711,0.07231386,71294.0,71293.0,0.45643527]
[1730196559205,0.07231386,71294.0,71293.0,0.09563527]
[1730196561511,0.07231386,71294.0,71293.0,0.3073846]
[1730196563318,0.13418195,71294.0,71293.0,0.2371996]
[1730196564309,0.16498195,71294.0,71293.0,0.2371996]
[1730196564510,0.16498195,71294.0,71293.0,0.12205293]
[1730196564916,0.16498195,71294.0,71293.0,0.20629072]
[1730196565719,0.16498195,71294.0,71293.0,0.12205293]
[1730196570216,0.16498195,71294.0,71293.0,0.1224542]
[1730196570416,0.52578195,71294.0,71293.0,0.1224542]
[1730196574322,0.52578195,71294.0,71293.0,0.20669199]
[1730196575626,0.49498195,71294.0,71293.0,0.1224542]
[1730196576525,0.49498195,71294.0,71293.0,0.02545027]
[1730196576830,0.070185,71293.0,71292.0,0.070186]
[1730196577427,0.070185,71293.0,71292.0,0.13205409]
[1730196577624,0.00212986,71294.0,71293.0,0.070185]
[1730196578026,0.00012986,71295.0,71293.0,0.938985]
[1730196578222,0.00012986,71299.0,71298.0,0.07018]
[1730196578530,0.00012986,71299.0,71298.0,0.13204809]
[1730196578531,0.00025897,71299.0,71298.0,0.13204809]
[1730196584627,0.00025897,71299.0,71298.0,0.22805782]
[1730196584835,0.00012911,71299.0,71298.0,0.22805782]
[1730196585532,0.00012911,71299.0,71298.0,0.29806193]
[1730196586527,0.00012911,71299.0,71298.0,0.2020522]
[1730196587253,0.00012911,71299.0,71298.0,0.13204809]
[1730196588441,0.00012911,71299.0,71298.0,0.49284809]
[1730196591745,0.00012911,71299.0,71298.0,0.5889176]
[1730196594447,0.00012911,71299.0,71298.0,0.70329947]
[1730196594647,0.00012911,71299.0,71298.0,0.5889176]
[1730196594953,0.00012911,71299.0,71298.0,0.70332564]
[1730196596947,0.00012911,71299.0,71298.0,0.70321486]
[1730196598649,0.00012986,71302.0,71298.0,0.76508295]
[1730196598847,0.10336285,71320.0,71310.0,0.070168]
[1730196598848,0.09439795,71318.0,71310.0,0.070168]
[1730196599153,0.07029674,71311.0,71310.0,0.070168]
[1730196599353,0.07029674,71311.0,71310.0,0.16601095]
[1730196599558,0.07029674,71311.0,71310.0,0.070168]
[1730196600048,0.07029674,71311.0,71310.0,0.13203609]
[1730196600540,0.08229674,71311.0,71310.0,0.13203609]
[1730196601353,0.09229674,71311.0,71310.0,0.13203609]
[1730196606649,0.09229674,71311.0,71310.0,0.25404142]
[1730196608855,0.09229674,71311.0,71310.0,0.18387342]
[1730196609059,0.09229674,71311.0,71310.0,0.12200533]
[1730196609253,0.09229674,71311.0,71310.0,0.19217333]
[1730196609951,0.09229674,71311.0,71310.0,0.25404142]
[1730196610856,0.09229674,71311.0,71310.0,0.1578875]
[1730196611556,0.09229674,71311.0,71310.0,0.12204966]
[1730196617263,0.09229674,71311.0,71310.0,0.02585141]
[1730196617559,0.070173,71305.0,71304.0,0.070174]
[1730196617958,0.07030174,71305.0,71304.0,0.07048472]
[1730196618262,0.13216983,71305.0,71304.0,0.00031072]
[1730196618465,0.070176,71302.0,71295.0,0.3608]
[1730196618653,0.06186809,71296.0,71292.0,0.070186]
[1730196618856,0.070185,71293.0,71292.0,0.070186]
[1730196619059,0.070186,71292.0,71291.0,0.09819639]
[1730196619459,0.07031611,71292.0,71291.0,0.1229654]
[1730196619966,0.07031611,71292.0,71291.0,0.02476901]
[1730196620262,0.070188,71290.0,71288.0,0.07019]
[1730196620564,0.070188,71290.0,71289.0,0.06186809]
[1730196622263,0.072188,71290.0,71289.0,0.06386809]
[1730196622661,0.002,71290.0,71289.0,0.13405709]
[1730196624866,0.072188,71290.0,71289.0,0.13405709]
[1730196626362,0.002,71290.0,71289.0,0.13405709]
[1730196635673,0.072188,71290.0,71289.0,0.13405709]
[1730196637166,0.072188,71290.0,71289.0,0.23121143]
[1730196638375,0.072188,71290.0,71289.0,0.34711049]
[1730196638674,0.072188,71290.0,71289.0,0.23121143]
[1730196639268,0.072188,71290.0,71289.0,0.34717951]
[1730196642178,0.072188,71290.0,71289.0,0.27699051]
[1730196642778,0.13405609,71290.0,71289.0,0.21512242]
[1730196643877,0.13405609,71290.0,71289.0,0.27699051]
[1730196645070,0.13405609,71290.0,71289.0,0.06386809]
[1730196645678,0.13405609,71290.0,71289.0,0.002]
[1730196649579,0.55485609,71290.0,71289.0,0.002]
[1730196649985,0.523188,71290.0,71289.0,0.002]
[1730196651887,0.58505609,71290.0,71289.0,0.002]
[1730196652091,0.58505609,71290.0,71289.0,0.1841988]
[1730196652382,0.58505609,71290.0,71289.0,0.002]
[1730196652577,0.58505609,71290.0,71289.0,0.09993015]
[1730196653279,0.16425609,71290.0,71289.0,0.09993015]
[1730196653587,0.58505609,71290.0,71289.0,0.09993015]
[1730196656378,0.58505609,71290.0,71289.0,0.1700275]
[1730196657393,0.58505609,71290.0,71289.0,0.07209735]
[1730196657690,0.61079229,71290.0,71289.0,0.07209735]
[1730196657886,0.61079229,71290.0,71289.0,0.17009515]
[1730196658283,0.61079229,71290.0,71289.0,0.07209735]
[1730196659293,0.61079229,71290.0,71289.0,0.002]
[1730196659888,0.61079229,71290.0,71289.0,0.07209735]
[1730196660285,0.61079229,71290.0,71289.0,0.002]
[1730196660484,0.61079229,71290.0,71289.0,0.0580609]
[1730196660688,0.61079229,71290.0,71289.0,0.002]
[1730196662789,0.69843229,71290.0,71289.0,0.002]
[1730196667502,0.73281003,71290.0,71289.0,0.002]
[1730196668898,0.73281003,71290.0,71274.0,0.00210462]
[1730196668899,0.070203,71275.0,71274.0,0.00210462]
[1730196669101,0.49287109,71275.0,71274.0,0.00210462]
[1730196669297,0.070207,71271.0,71263.0,0.100914]
[1730196669508,0.13207509,71271.0,71270.0,0.08990387]
[1730196669813,0.1322052,71271.0,71270.0,0.08990387]
[1730196670613,0.1332052,71271.0,71270.0,0.09090387]
[1730196671915,0.1342052,71271.0,71270.0,0.09090387]
[1730196675011,0.1342052,71271.0,71270.0,0.05910387]
[1730196675218,0.1342052,71271.0,71270.0,0.15748258]
[1730196675419,0.1342052,71271.0,71270.0,0.15749639]
[1730196678625,0.1332052,71271.0,71270.0,0.15649639]
[1730196678834,0.1342052,71271.0,71270.0,0.1563568]
[1730196679019,0.1342052,71271.0,71270.0,0.22639099]
[1730196679219,0.1342052,71271.0,71270.0,0.1563568]
[1730196679626,0.1342052,71271.0,71270.0,0.05810387]
[1730196683426,0.07233711,71271.0,71270.0,0.05810387]
[1730196683629,0.1342052,71271.0,71270.0,0.05810387]
[1730196684524,0.07233711,71271.0,71270.0,0.05810387]
[1730196684829,0.1342052,71271.0,71270.0,0.05810387]
[1730196685734,0.8558052,71271.0,71270.0,0.05810387]
[1730196686522,0.79393711,71271.0,71270.0,0.05810387]
[1730196686732,0.8558052,71271.0,71270.0,0.05810387]
[1730196687823,0.79393711,71271.0,71270.0,0.05810387]
[1730196688132,0.07233711,71271.0,71270.0,0.19017996]
[1730196688333,0.00013011,71275.0,71270.0,0.97296805]
[1730196688633,0.070198,71281.0,71280.0,0.13206509]
[1730196689031,0.07032774,71281.0,71280.0,0.13206509]
[1730196689438,0.07032774,71281.0,71280.0,0.070197]
[1730196689933,0.07132774,71281.0,71280.0,0.070197]
[1730196690133,0.13319583,71281.0,71280.0,0.28466838]
[1730196690644,0.00112974,71281.0,71280.0,0.16804149]
[1730196690936,0.00112974,71281.0,71280.0,0.34650593]
[1730196691328,0.33082974,71282.0,71281.0,0.070197]
[1730196691534,0.33082974,71282.0,71281.0,0.16804149]
[1730196691733,0.33095929,71282.0,71281.0,0.16804149]
[1730196692235,0.46302338,71282.0,71281.0,0.21450548]
[1730196692440,0.46402338,71282.0,71281.0,0.09984449]
[1730196692739,0.46502338,71282.0,71281.0,0.10184449]
[1730196693533,0.46502338,71282.0,71281.0,0.12658081]
[1730196697241,0.46502338,71282.0,71281.0,0.02873632]
[1730196697242,0.54248419,71282.0,71281.0,0.02873632]
[1730196697441,0.54248419,71282.0,71281.0,0.004]
[1730196698144,0.60435228,71282.0,71281.0,0.004]
[1730196698542,0.56126606,71282.0,71281.0,0.004]
[1730196698944,0.49939797,71282.0,71281.0,0.004]
[1730196699636,0.56126606,71282.0,71281.0,0.004]
[1730196700136,0.49939797,71282.0,71281.0,0.004]
[1730196700635,0.54248967,71282.0,71281.0,0.004]
[1730196702539,0.60435776,71282.0,71281.0,0.004]
[1730196702932,0.95504176,71282.0,71275.0,0.02561145]
[1730196703138,0.95504176,71282.0,71270.0,0.0325]
[1730196703139,0.55473818,71276.0,71270.0,0.0325]
[1730196703446,0.13207509,71271.0,71270.0,0.0325]
[1730196703644,0.20954138,71271.0,71270.0,0.0325]
[1730196703943,0.20967093,71271.0,71270.0,0.0325]
[1730196704643,0.21067656,71271.0,71270.0,0.0345]
[1730196705043,0.13420464,71271.0,71270.0,0.0355]
[1730196705548,0.13420464,71271.0,71270.0,0.0606525]
[1730196715563,0.13420464,71271.0,71270.0,0.13061185]
[1730196716465,0.13420464,71271.0,71270.0,0.22914984]
[1730196717569,0.13420464,71271.0,71270.0,0.15919049]
[1730196718673,0.13420464,71271.0,71270.0,0.0606525]
[1730196719173,0.13420464,71271.0,71270.0,0.0281525]
[1730196726470,0.07233655,71271.0,71270.0,0.0983605]
[1730196727266,0.07233655,71271.0,71270.0,0.31410413]
[1730196728278,0.07233655,71271.0,71270.0,0.24389613]
[1730196728765,0.07233655,71271.0,71270.0,0.31410413]
[1730196732078,0.07233655,71271.0,71270.0,0.31443729]
[1730196733079,0.00212955,71271.0,71270.0,0.31431455]
[1730196733279,0.00012955,71276.0,71275.0,0.070203]
[1730196733476,0.07033255,71276.0,71275.0,0.1687799]
[1730196733673,0.07046192,71276.0,71275.0,0.2312799]
[1730196735075,0.07146192,71276.0,71275.0,0.2312799]
[1730196735280,0.07146192,71276.0,71275.0,0.132703]
[1730196735876,0.07246192,71276.0,71275.0,0.133703]
[1730196736272,0.07246192,71276.0,71275.0,0.554623]
[1730196737389,0.00225892,71276.0,71275.0,0.554623]
[1730196740981,0.07246092,71276.0,71275.0,0.554623]
[1730196742583,0.07246092,71276.0,71275.0,0.73763083]
[1730196744186,0.07246092,71276.0,71275.0,0.31671083]
[1730196744785,0.07246092,71276.0,71275.0,0.23259694]
[1730196746585,0.07246092,71276.0,71275.0,0.31668644]
[1730196746983,0.07246092,71276.0,71275.0,0.09989394]
[1730196749578,0.10683711,71276.0,71275.0,0.001]
[1730196749997,0.14992534,71276.0,71275.0,0.001]
[1730196750689,0.10683711,71276.0,71275.0,0.001]
[1730196750885,0.14992533,71276.0,71275.0,0.001]
[1730196751592,0.10683711,71276.0,71275.0,0.001]
[1730196752595,0.14992533,71276.0,71275.0,0.001]
[1730196753398,0.10683711,71276.0,71275.0,0.071203]
[1730196754190,0.10683711,71276.0,71275.0,0.001]
[1730196756699,0.14992501,71276.0,71275.0,0.001]
[1730196757692,0.14992501,71276.0,71275.0,0.10044033]
[1730196757693,0.07246092,71276.0,71275.0,0.10044033]
[1730196759289,0.07246092,71276.0,71275.0,0.05054033]
[1730196759290,0.13432901,71276.0,71275.0,0.05054033]
[1730196759591,0.07246092,71276.0,71275.0,0.05054033]
[1730196759894,0.13432901,71276.0,71275.0,0.05054033]
[1730196760095,0.49512901,71276.0,71275.0,0.00064033]
[1730196760302,0.49512901,71276.0,71275.0,0.07081092]
[1730196760493,0.42492701,71276.0,71274.0,0.07017059]
[1730196760697,0.070203,71275.0,71274.0,0.07017059]
[1730196761000,0.07033237,71275.0,71274.0,0.07017059]
[1730196761505,0.070204,71274.0,71273.0,0.07017059]
[1730196761698,0.13207209,71274.0,71273.0,0.07017059]
[1730196761898,0.13220146,71274.0,71273.0,0.07017059]
[1730196762203,0.070207,71271.0,71270.0,0.0251525]
[1730196762401,0.07021,71268.0,71267.0,0.08419251]
[1730196762591,0.13207809,71268.0,71267.0,0.08419251]
[1730196762791,0.13220746,71268.0,71267.0,0.08419251]
[1730196762998,0.13220746,71268.0,71267.0,0.10985112]
[1730196763398,0.13220746,71268.0,71267.0,0.02565861]
[1730196763600,0.13220746,71268.0,71266.0,0.08419251]
[1730196763801,0.070211,71267.0,71266.0,0.08419251]
[1730196763998,0.07034037,71267.0,71266.0,0.08419251]
[1730196764598,0.07034037,71267.0,71266.0,0.11788486]
[1730196765506,0.07034037,71267.0,71266.0,0.14319704]
[1730196765911,0.07134037,71267.0,71266.0,0.14318415]
[1730196766608,0.07134037,71267.0,71266.0,0.02531218]
[1730196766609,0.07234037,71267.0,71266.0,0.02531218]
[1730196766808,0.070213,71265.0,71264.0,0.14966809]
[1730196767105,0.07034237,71265.0,71264.0,0.20562096]
[1730196767316,0.13221046,71265.0,71264.0,0.20562096]
[1730196767903,0.13221046,71265.0,71264.0,0.20561954]
[1730196768114,0.13321046,71265.0,71264.0,0.20561954]
[1730196768308,0.13321046,71265.0,71264.0,0.11355813]
[1730196768506,0.13421046,71265.0,71264.0,0.11355813]
[1730196769410,0.13421046,71265.0,71264.0,0.23146838]
[1730196770508,0.13421046,71265.0,71264.0,0.11355813]
[1730196772212,0.13421046,71265.0,71264.0,0.23127155]
[1730196772605,0.13421046,71265.0,71264.0,0.11355813]
[1730196774112,0.13421046,71265.0,71264.0,0.02575813]
[1730196774307,0.13421046,71265.0,71262.0,0.05607483]
[1730196774513,0.070215,71263.0,71262.0,0.05607483]
[1730196774705,0.07034437,71263.0,71262.0,0.05607483]
[1730196774906,0.07034437,71263.0,71262.0,0.05705939]
[1730196775617,0.07134437,71263.0,71262.0,0.05705939]
[1730196776510,0.07234437,71263.0,71262.0,0.05705939]
[1730196777320,0.07234437,71263.0,71262.0,0.08184004]
[1730196777616,0.07234437,71263.0,71262.0,0.02576521]
[1730196778008,0.07234437,71263.0,71262.0,0.02478065]
[1730196778209,0.07234437,71263.0,71260.0,0.0021047]
[1730196778516,0.07034637,71261.0,71260.0,0.0021047]
[1730196779614,0.00012937,71261.0,71260.0,0.24371078]
[1730196779917,0.07034637,71261.0,71260.0,0.219049]
[1730196780517,0.07034637,71261.0,71260.0,0.21904847]
[1730196780718,0.07134637,71261.0,71260.0,0.21904847]
[1730196780914,0.07234637,71261.0,71260.0,0.21904847]
[1730196781312,0.07234637,71261.0,71260.0,0.2440795]
[1730196782116,0.49501446,71261.0,71260.0,0.2440795]
[1730196782330,0.49501446,71261.0,71260.0,0.09897243]
[1730196782616,0.49501446,71261.0,71260.0,0.09905151]
[1730196782822,0.49501446,71261.0,71260.0,0.16927549]
[1730196783016,0.84579746,71261.0,71259.0,0.0700818]
[1730196783219,0.070218,71260.0,71259.0,0.0700818]
[1730196783410,0.13221546,71260.0,71259.0,0.0992914]
[1730196783918,0.13221546,71260.0,71259.0,0.0989874]
[1730196785319,0.13321546,71260.0,71259.0,0.0989874]
[1730196785523,0.13421546,71260.0,71259.0,0.0989874]
[1730196787516,0.07022,71258.0,71257.0,0.070221]
[1730196787711,0.070224,71254.0,71253.0,0.05593765]
[1730196787918,0.49289209,71254.0,71253.0,0.02473765]
[1730196788125,0.42279746,71254.0,71252.0,0.05606964]
[1730196788425,0.070226,71252.0,71251.0,0.05606964]
[1730196788615,0.13209409,71252.0,71249.0,0.08324119]
[1730196788817,0.13222346,71252.0,71251.0,0.05606998]
[1730196789216,0.13222346,71252.0,71250.0,0.05606998]
[1730196789417,0.13222346,71252.0,71251.0,0.05607588]
[1730196789724,0.070227,71251.0,71250.0,0.06908907]
[1730196789924,0.13209509,71251.0,71250.0,0.05607588]
[1730196790222,0.13222446,71251.0,71250.0,0.06613424]
[1730196791125,0.13322446,71251.0,71250.0,0.06613424]
[1730196792120,0.07135637,71251.0,71250.0,0.14215445]
[1730196792523,0.07235637,71251.0,71250.0,0.14215445]
[1730196793124,0.07235637,71251.0,71250.0,0.1675457]
[1730196794631,0.07235637,71251.0,71250.0,0.38468714]
[1730196794928,0.00212937,71251.0,71250.0,0.31445914]
[1730196795134,0.07235637,71251.0,71250.0,0.31445914]
[1730196795428,0.07235637,71251.0,71250.0,0.38468714]
[1730196797126,0.07235637,71251.0,71250.0,0.31445914]
[1730196802039,0.13422446,71251.0,71250.0,0.25259105]
[1730196802539,0.13422446,71251.0,71250.0,0.25201543]
[1730196803333,0.13422446,71251.0,71250.0,0.25197253]
[1730196809632,0.06186809,71251.0,71250.0,0.03544961]
[1730196809837,0.13209509,71251.0,71250.0,0.03544961]
[1730196814151,0.13309509,71251.0,71250.0,0.03744961]
[1730196814447,0.13409509,71251.0,71250.0,0.03844961]
[1730196814644,0.49389509,71251.0,71250.0,0.03644961]
[1730196814842,0.49489509,71251.0,71250.0,0.03844961]
[1730196815046,0.49389509,71251.0,71250.0,0.03744961]
[1730196815249,0.49389509,71251.0,71250.0,0.02839125]
[1730196815250,0.49489509,71251.0,71250.0,0.02839125]
[1730196815554,0.55676318,71251.0,71250.0,0.02839125]
[1730196815748,0.49489509,71251.0,71250.0,0.003]
[1730196816248,0.55676318,71251.0,71250.0,0.003]
[1730196816842,0.55676318,71251.0,71250.0,0.002]
[1730196817043,0.49489509,71251.0,71250.0,0.002]
[1730196817647,0.49489509,71251.0,71250.0,0.10112487]
[1730196817949,0.49489509,71251.0,71250.0,0.101142]
[1730196817950,0.55676318,71251.0,71250.0,0.101142]
[1730196818644,0.97780318,71251.0,71250.0,0.101142]
[1730196818948,0.97780318,71251.0,71250.0,0.00296964]
[1730196819145,0.97780318,71251.0,71242.0,0.08421483]
[1730196819146,0.070234,71243.0,71242.0,0.08421483]
[1730196819342,0.070234,71243.0,71240.0,0.08421483]
[1730196819343,0.070235,71242.0,71240.0,0.08421483]
[1730196819544,0.42266809,71241.0,71237.0,0.08421483]
[1730196819753,0.06186809,71238.0,71236.0,0.08421483]
[1730196819952,0.070241,71236.0,71235.0,0.08421483]
[1730196820138,0.13210909,71236.0,71235.0,0.08421483]
[1730196820343,0.06186809,71236.0,71234.0,0.08421483]
[1730196820554,0.070246,71231.0,71230.0,0.08421483]
[1730196820748,0.13211409,71231.0,71230.0,0.08421483]
[1730196821048,0.13224328,71231.0,71230.0,0.00049273]
[1730196821551,0.070248,71229.0,71228.0,0.11693136]
[1730196821748,0.070248,71229.0,71228.0,0.08421483]
[1730196821949,0.07037719,71229.0,71228.0,0.11939506]
[1730196822552,0.07037719,71229.0,71228.0,0.10542923]
[1730196822853,0.07037719,71229.0,71228.0,0.16729732]
[1730196822854,0.00012919,71229.0,71228.0,0.16729732]
[1730196823148,0.00012919,71229.0,71228.0,0.25151215]
[1730196823354,0.00012919,71229.0,71228.0,0.28461295]
[1730196823553,0.00112919,71229.0,71228.0,0.16729732]
[1730196823845,0.00112919,71229.0,71228.0,0.28451443]
[1730196824441,0.00112919,71229.0,71228.0,0.16729732]
[1730196824650,0.00212919,71229.0,71228.0,0.16729732]
[1730196828345,0.00012919,71235.0,71230.0,0.070247]
[1730196828646,0.00012919,71235.0,71234.0,0.49322161]
[1730196828952,0.00012919,71237.0,71234.0,0.51113861]
[1730196829149,0.06199728,71237.0,71236.0,0.070241]
[1730196829350,0.06199728,71237.0,71236.0,0.07055196]
[1730196830446,0.06299728,71237.0,71236.0,0.07055196]
[1730196830859,0.13323728,71237.0,71236.0,0.07055196]
[1730196831249,0.13423728,71237.0,71236.0,0.07155196]
[1730196833155,0.13423728,71237.0,71236.0,0.09693047]
[1730196833553,0.13423728,71237.0,71236.0,0.02668947]
[1730196834062,0.13423728,71237.0,71236.0,0.12421549]
[1730196834652,0.13423728,71237.0,71236.0,0.24047755]
[1730196835552,0.13423728,71237.0,71236.0,0.24044737]
[1730196839655,0.13423728,71237.0,71236.0,0.02668947]
[1730196847759,0.13423728,71237.0,71236.0,0.24076161]
[1730196850364,0.13423728,71237.0,71236.0,0.1246587]
[1730196850568,0.16713728,71237.0,71236.0,0.24143427]
[1730196855271,0.16713728,71237.0,71236.0,0.24134043]
[1730196860068,0.16713728,71237.0,71236.0,0.24136658]
[1730196861077,0.16713728,71237.0,71236.0,0.12462782]
[1730196862671,0.16713728,71237.0,71236.0,0.00131096]
[1730196863871,0.16713728,71237.0,71236.0,0.00231096]
[1730196864273,0.16613728,71237.0,71236.0,0.00131096]
[1730196864578,0.16613728,71237.0,71236.0,0.00231096]
[1730196864579,0.16713728,71237.0,71236.0,0.00231096]
[1730196864984,0.52793728,71237.0,71236.0,0.00231096]
[1730196865484,0.58980537,71237.0,71236.0,0.00231096]
[1730196867593,0.58980537,71237.0,71236.0,9.6e-07]
[1730196867882,0.07026,71218.0,71217.0,0.07026]
[1730196868081,0.13212809,71218.0,71217.0,0.07026]
[1730196868284,0.13212809,71218.0,71217.0,0.07223108]
[1730196868781,0.07026,71218.0,71217.0,0.07223108]
[1730196868971,0.13225809,71218.0,71217.0,0.07223108]
[1730196869176,0.13325809,71218.0,71217.0,0.07323108]
[1730196869681,0.13425809,71218.0,71217.0,0.07423108]
[1730196869889,0.06399809,71218.0,71217.0,0.29024266]
[1730196870882,0.08504983,71218.0,71217.0,0.42622996]
[1730196871189,0.08504983,71218.0,71217.0,0.3884212]
[1730196871384,0.08504983,71218.0,71217.0,0.29024266]
[1730196874688,0.08504983,71218.0,71217.0,0.07423108]
[1730196874989,0.08504983,71218.0,71217.0,0.28857909]
[1730196877791,0.08504983,71218.0,71217.0,0.07423108]
[1730196878491,0.08504983,71218.0,71217.0,0.00397108]
[1730196884989,0.08504983,71218.0,71217.0,0.21841757]
[1730196893194,0.04287074,71218.0,71217.0,0.21841757]
[1730196894604,0.04287074,71218.0,71217.0,0.10191897]
[1730196894909,0.07026,71218.0,71217.0,0.46637467]
[1730196895103,0.13212809,71218.0,71217.0,0.35422282]
[1730196895309,0.13212809,71218.0,71217.0,0.2186691]
[1730196899303,0.13212809,71218.0,71217.0,0.35392919]
[1730196899897,0.13212809,71218.0,71217.0,0.00397108]
[1730196900898,0.13212809,71218.0,71217.0,0.002]
[1730196902214,0.07026,71218.0,71217.0,0.002]
[1730196902402,0.13212809,71218.0,71217.0,0.002]
[1730196904606,0.13212809,71218.0,71217.0,0.05822234]
[1730196905618,0.13212809,71218.0,71217.0,0.002]
[1730196908012,0.13212809,71218.0,71217.0,0.21651059]
[1730196908510,0.13212809,71218.0,71217.0,0.35199137]
[1730196908710,0.13212809,71218.0,71217.0,0.45037838]
[1730196908909,0.13212809,71218.0,71217.0,0.35199137]
[1730196909114,0.13212809,71218.0,71217.0,0.21651059]
[1730196909514,0.13212809,71218.0,71217.0,0.09986238]
[1730196911417,0.13212809,71218.0,71217.0,0.09886238]
[1730196911612,0.13312809,71218.0,71217.0,0.09986238]
[1730196912020,0.13312809,71218.0,71217.0,0.21606624]
[1730196912021,0.07126,71218.0,71217.0,0.21606624]
[1730196912218,0.07226,71218.0,71217.0,0.28732624]
[1730196912520,0.07226,71218.0,71217.0,0.32052624]
[1730196913011,0.07126,71218.0,71217.0,0.31852624]
[1730196913321,0.07226,71218.0,71217.0,0.32052624]
[1730196914120,0.3608,71222.0,71217.0,0.56834744]
[1730196914316,0.070255,71222.0,71221.0,0.23047151]
[1730196914519,0.070255,71222.0,71221.0,0.34719033]
[1730196914714,0.070255,71222.0,71221.0,0.28532224]
[1730196915025,0.070255,71222.0,71221.0,0.070256]
[1730196915220,0.070255,71222.0,71221.0,0.13212409]
[1730196916118,0.071255,71222.0,71221.0,0.13212409]
[1730196916826,0.071255,71222.0,71221.0,0.13412409]
[1730196917118,0.072255,71222.0,71221.0,0.13612409]
[1730196917531,0.072255,71222.0,71221.0,0.49692409]
[1730196917734,0.070246,71232.0,71231.0,0.070243]
[1730196918018,0.070246,71232.0,71231.0,0.070246]
[1730196918019,0.00012981,71232.0,71231.0,0.070246]
[1730196918224,0.00012981,71232.0,71231.0,0.131846]
[1730196918824,0.07037481,71232.0,71231.0,0.131846]
[1730196919421,0.07137481,71232.0,71231.0,0.131846]
[1730196919626,0.07437481,71232.0,71231.0,0.131846]
[1730196920624,0.07337481,71232.0,71231.0,0.131846]
[1730196920816,0.07037481,71232.0,71231.0,0.131846]
[1730196921019,0.07137481,71232.0,71231.0,0.133846]
[1730196921221,0.07137481,71232.0,71231.0,0.16223935]
[1730196921222,0.07237481,71232.0,71231.0,0.16223935]
[1730196925132,0.07237481,71232.0,71231.0,0.20426949]
[1730196925324,0.07237481,71232.0,71231.0,0.10242349]
[1730196925634,0.07237481,71232.0,71231.0,0.03039335]
[1730196927125,0.1342429,71232.0,71231.0,0.005]
[1730196927432,0.5554029,71232.0,71231.0,0.005]
[1730196927826,0.070256,71221.0,71218.0,0.04203014]
[1730196928021,0.070256,71221.0,71217.0,0.04203014]
[1730196928022,0.070259,71218.0,71217.0,0.04203014]
[1730196928228,0.13212709,71218.0,71217.0,0.04252296]
[1730196928532,0.1322569,71218.0,71217.0,0.04203014]
[1730196928733,0.4930569,71218.0,71217.0,0.04602255]
[1730196929938,0.4940569,71218.0,71217.0,0.07398576]
[1730196930137,0.4950569,71218.0,71217.0,0.07698576]
[1730196934133,0.4950569,71218.0,71217.0,0.03096321]
[1730196935655,0.4950569,71218.0,71217.0,0.006]
[1730196935955,0.070282,71196.0,71195.0,0.070281]
[1730196936132,0.13215009,71196.0,71195.0,0.070281]
[1730196936331,0.1322799,71196.0,71195.0,0.12764228]
[1730196936637,0.1322799,71196.0,71195.0,0.070281]
[1730196936839,0.1322799,71196.0,71195.0,0.13503971]
[1730196937932,0.1322799,71196.0,71195.0,0.31792978]
[1730196938145,0.1332799,71196.0,71195.0,0.23363392]
[1730196938443,0.0639979,71196.0,71195.0,0.31792978]
[1730196938845,0.1342799,71196.0,71195.0,0.31792978]
[1730196939238,0.1342799,71196.0,71195.0,0.23363392]
[1730196940045,0.1342799,71196.0,71195.0,0.16335292]
[1730196940840,0.1342799,71196.0,71195.0,0.23331233]
[1730196941040,0.1342799,71196.0,71195.0,0.08964355]
[1730196942337,0.07241181,71196.0,71195.0,0.08964355]
[1730196943049,0.07241181,71196.0,71195.0,0.02488484]